Cogmind - Beta 13 @@@ ROGUE MODE // 2024.06.30 @ 19:41:54 Player: CanadianCogs Result: Destroyed by S-27 Virus with Autogun Performance ------------- Evolutions (3) 1500 Regions Visited (8) 1600 Robots Destroyed (23) 115 Value Destroyed (820) 820 Prototype IDs (2) 40 Alien Tech Used (0) 0 Bonus (500) 500 TOTAL SCORE: 4575 Bonus ------- Entered Garrisons 200 Aligned with FarCom 300 Cogmind --------- Core Integrity 0/700 Matter 49/300 Energy 100/100 System Corruption 15% Temperature Cool (-100) Movement Rolling (150) Ox4 Location -7/Lower Caves Parts ------- > --- POWER (1) -------- (None) > --- PROPULSION (4) --- Armored Wheel Armored Wheel Armored Wheel Armored Wheel > --- UTILITY (6) ------ Cryofiber Web Humpback ECM Suite > --- WEAPON (2) ------- Chainsword > --- INVENTORY (35) --- (None) Peak State ------------ > --- POWER ------------ Ion Engine > --- PROPULSION ------- Gravmag System Gravmag System Gravmag System Gravmag System > --- UTILITY ---------- Small Storage Unit Modified TNC Advanced ECM Suite Improved Medium Armor Plating > --- WEAPON ----------- Greatsword > --- INVENTORY -------- Humpback Flak Cannon Flak Cannon Flak Cannon Flak Cannon Rocket Launcher Remote Datajack [Rating: 42] Favorites ----------- Power Ion Engine Engine Ion Engine Power Core Micro Nuclear Core Propulsion Gravmag System Leg Aluminum Leg Wheel Wheel Hover Unit Gravmag System Flight Unit Surge Thruster Utility Small Storage Unit Device Advanced ECM Suite Storage Small Storage Unit Processor Modified TNC Protection Improved Medium Armor Plating Weapon Greatsword Energy Gun Medium Laser Energy Cannon Plasma Cannon Ballistic Cannon Flak Cannon Launcher Rocket Launcher Special Weapon Remote Datajack Slashing Weapon Greatsword Special Melee Weapon Improved Datajack Build | -11 -10 -10 -10 -9 -8 -8 -7 -7 ------- Run | Yrd Mat Min Exi Min Mat Gar Fac Low Slots Evolved 6 | . . . . . 4 . 2 . Power . | . . . . . . . . . Propulsion 2 | . . . . . 2 . . . Utility 4 | . . . . . 2 . 2 . Weapon . | . . . . . . . . . Parts Attached 67 | 7 . 3 4 2 11 18 17 5 Power 5 | 1 . . . . 1 2 1 . Engine 2 | 1 . . . . 1 . . . Core 3 | . . . . . . 2 1 . Reactor . | . . . . . . . . . Propulsion 25 | 2 . 2 2 . 4 6 8 1 Treads . | . . . . . . . . . Leg 2 | . . . . . . 2 . . Wheel 13 | 2 . 2 2 . . . 6 1 Hover 5 | . . . . . 4 . 1 . Flight 5 | . . . . . . 4 1 . Utility 15 | 2 . . 2 . 4 1 3 3 Device 9 | 1 . . 1 . 2 . 3 2 Storage 3 | 1 . . . . . 1 . 1 Processor 1 | . . . 1 . . . . . Hackware . | . . . . . . . . . Protection 2 | . . . . . 2 . . . Artifact . | . . . . . . . . . Weapon 22 | 2 . 1 . 2 2 9 5 1 Energy Gun 5 | 2 . 1 . 1 . 1 . . Energy Cannon 1 | . . . . . . . 1 . Ballistic Gun . | . . . . . . . . . Ballistic Cannon 5 | . . . . . . 4 1 . Launcher 3 | . . . . . 1 2 . . Special Weapon 1 | . . . . . . . 1 . Impact Weapon . | . . . . . . . . . Slashing Weapon 5 | . . . . 1 1 2 . 1 Piercing Weapon . | . . . . . . . . . Special Melee Weapon 2 | . . . . . . . 2 . Unidentified Prototypes 2 | . . . 2 . . . . . Corrupted Parts 2 | . . . . 1 . 1 . . System Corruption 7 | . . . . 2 . 5 . . Parts Lost 23 | . . . . 1 . 17 5 . Power 3 | . . . . 1 . 1 1 . Propulsion 10 | . . . . . . 8 2 . Utility 4 | . . . . . . 4 . . Weapon 6 | . . . . . . 4 2 . Highest Loss Streak 7 | . . . . 1 . 7 4 . To Critical Strikes . | . . . . . . . . . Average Slot Usage (%) 70 | . 100 100 99 71 84 60 17 54 Engine 6 | . 14 14 14 . 8 4 . . Wheel 10 | . 28 28 28 28 4 . . 30 Hover 13 | . . . . . 27 18 1 . Flight 1 | . . . . . . 5 6 . Device 10 | . 14 14 5 . 14 9 1 15 Storage 8 | . 14 14 14 14 9 6 . 7 Processor 2 | . . . 7 14 2 . . . Protection 3 | . . . . . 8 4 . . Energy Gun 6 | . 28 28 28 1 . 1 . . Slashing Weapon 4 | . . . . 13 8 4 . 1 Naked Turns 166 | . . . . . . . 166 . Heaviest Build 206 | 15 15 16 16 17 27 200 16 206 Greatest Support 48 | 20 20 20 32 32 36 36 48 48 Greatest Overweight (x) 66 | . . . . . 1 66 1 4 Average Overweight (x) . | . . . . . . . . 4 Largest Inventory Capacity 35 | 8 8 8 8 8 8 35 5 35 Average Capacity 8 | 7 8 8 8 8 8 7 5 34 Most Carried 8 | 5 8 8 8 8 8 8 5 4 Average Carried 6 | 2 6 7 7 7 7 6 4 . Final Capacity 35 | 8 8 8 8 8 8 35 5 35 Final Carried 8 | 4 8 7 8 8 8 1 5 . Class Distribution -------------------- 81% | Mutant 8% | Sprinter 6% | Scavenger-Mutant 4% | Hauler-Mutant Dominant Class ---------------- Mutant | -10/Materials Scavenger-Mutant | -10/Mines Mutant | -10/Exiles Mutant | -9/Mines Mutant | -8/Materials Mutant | -8/Garrison Mutant | -7/Factory Hauler-Mutant | -7/Lower Caves Resources | -11 -10 -10 -10 -9 -8 -8 -7 -7 ----------- Run | Yrd Mat Min Exi Min Mat Gar Fac Low Matter Collected 788 | 98 . 95 . . 255 107 181 52 Remotely . | . . . . . . . . . Salvage Created 768 | 120 41 95 . . 57 386 69 . Parts 53 | 13 3 5 . . 3 26 3 . Haulers Intercepted . | . . . . . . . . . Recyclers Shooed 1 | . . . . . . . 1 . Parts Field Recycled . | . . . . . . . . . Retrieved Matter . | . . . . . . . . . Parts Self-Destructed . | . . . . . . . . . Prevented . | . . . . . . . . . Kills | -11 -10 -10 -10 -9 -8 -8 -7 -7 ------- Run | Yrd Mat Min Exi Min Mat Gar Fac Low Combat Hostiles Destroyed 18 | . 1 2 . . 1 12 2 . Melee 5 | . . . . . 1 4 . . Guns 4 | . 1 2 . . . 1 . . Cannons 8 | . . . . . . 6 2 . AOE 1 | . . . . . . 1 . . Classes Destroyed 8 | 2 1 1 . . . 2 2 . Builder 1 | . . 1 . . . . . . Tunneler 3 | 3 . . . . . . . . Recycler 1 | 1 . . . . . . . . Cutter 2 | . . . . . . 2 . . Grunt 11 | . 1 2 . . 1 7 . . Sentry 3 | . . . . . . 3 . . Hunter 1 | . . . . . . . 1 . Programmer 1 | . . . . . . . 1 . Best Kill Streak 7 | 2 1 2 . . 1 7 1 . Combat Bots Only 7 | . 1 2 . . 1 7 1 . Max Kills in Single Turn 1 | 1 1 1 . . 1 1 1 . Gunslinging . | . . . . . . . . . Exploded 1 | . . . . . . 1 . . Melee 1 | . . . . . 1 1 . . Uniques/NPCs Destroyed . | . . . . . . . . . Combat | -11 -10 -10 -10 -9 -8 -8 -7 -7 -------- Run | Yrd Mat Min Exi Min Mat Gar Fac Low Hostile Shots Fired 324 | . 4 9 . . 6 194 109 2 Missed 94 | . 2 3 . . 4 48 36 1 Damage Taken 3524 | . 16 78 . 67 13 2233 1100 17 Core 1194 | . . . . . . 491 686 17 Absorbed by Shields 71 | . . . . . 6 65 . . Regen/Repaired (Parts) 19 | . . . . . 19 . . . Core Remaining (%) 70 | 100 . . . 100 . 10 . . Volleys Fired 55 | 5 3 7 . . 2 29 9 . Largest 2 | 2 2 2 . . 1 2 1 . Hottest 115 | 100 100 115 . . 33 109 80 . Shots Fired 87 | 10 6 14 . . 2 45 10 . Gun 40 | 10 6 14 . . . 10 . . Cannon 41 | . . . . . . 31 10 . Launcher 6 | . . . . . 2 4 . . Special . | . . . . . . . . . Kinetic 37 | . . . . . . 31 6 . Thermal 44 | 10 6 14 . . . 10 4 . Explosive 6 | . . . . . 2 4 . . Electromagnetic . | . . . . . . . . . Robot Hit Streak 11 | 5 3 11 . . . 6 5 . Robot Miss Streak 8 | 1 3 1 . . . 8 2 . Penetration Max . | . . . . . . . . . Secondary Targets 1 | . . 1 . . . . . . Max Gunslinging Chain 1 | . . 1 . . . . . . Shots Hit Robots 80 | 6 3 12 . . 1 46 12 . Core Hits 65 | 5 2 6 . . 1 46 5 . Critical Kills . | . . . . . . . . . Critical Parts Destroyed . | . . . . . . . . . Critical Strikes 8 | . . 1 . . . 6 1 . Burn 1 | . . 1 . . . . . . Blast 1 | . . . . . . . 1 . Sever 6 | . . . . . . 6 . . Melee Attacks 40 | . . . . . 11 23 6 . Impact . | . . . . . . . . . Slashing 34 | . . . . . 11 23 . . Piercing . | . . . . . . . . . Sneak Attacks 4 | . . . . . . 1 3 . Combat Hostiles 1 | . . . . . . 1 . . Follow-up Attacks . | . . . . . . . . . Damage Inflicted 2014 | 76 25 147 . . 58 1499 209 . Guns 334 | 76 25 147 . . . 86 . . Cannons 732 | . . . . . . 536 196 . Explosions 60 | . . . . . . 60 . . Melee 875 | . . . . . 58 817 . . Ramming 13 | . . . . . . . 13 . Kinetic 656 | . . . . . . 536 120 . Thermal 410 | 76 25 147 . . . 86 76 . Explosive 60 | . . . . . . 60 . . Electromagnetic . | . . . . . . . . . Impact . | . . . . . . . . . Slashing 875 | . . . . . 58 817 . . Piercing . | . . . . . . . . . Highest Corruption 15 | . . . . 2 . 6 15 15 Average Corruption 7 | . . . . 2 . 1 7 15 Corruption Purged . | . . . . . . . . . Corruption Blocked . | . . . . . . . . . Effects 26 | . . . . 5 . . 16 5 Message Errors 6 | . . . . 1 . . 4 1 Matter Fused 5 | . . . . . . . 4 1 Heat Flow Errors 2 | . . . . 1 . . . 1 Energy Discharges 5 | . . . . 1 . . 2 2 Data Loss (minor) 4 | . . . . 2 . . 2 . Data Loss (major) 2 | . . . . . . . 2 . Misfires 1 | . . . . . . . 1 . Misdirections 1 | . . . . . . . 1 . Overload Shots . | . . . . . . . . . Overflow Damage 45 | . . . . . . 45 . . Projectiles . | . . . . . . . . . Explosions . | . . . . . . . . . Melee 45 | . . . . . . 45 . . Knockbacks 14 | . . . . . . 11 3 . Impact 1 | . . . . . . . 1 . Kinetic 13 | . . . . . . 11 2 . Secondary . | . . . . . . . . . Self-Inflicted Damage 45 | . . . . . . 39 6 . Shots 3 | . . . . . . 3 . . Rammed 4 | . . . . . . . 4 . Targets Rammed 4 | . . . . . . . 4 . Kicked . | . . . . . . . . . Crushed . | . . . . . . . . . Highest Temperature 449 | 78 39 279 . 232 8 449 112 8 Average Temperature 141 | 39 24 131 . 119 8 194 54 8 Received Heat Transfer 1257 | . . 45 . . . 960 252 . Effects 5 | . . 2 . . . 3 . . Energy Bleed 1 | . . . . . . 1 . . Interference 3 | . . 2 . . . 1 . . Short Circuit 1 | . . . . . . 1 . . Siege Activations . | . . . . . . . . . Robots Corrupted . | . . . . . . . . . Combat Hostiles . | . . . . . . . . . Parts Fried . | . . . . . . . . . Impact Corruptions . | . . . . . . . . . Robots Melted . | . . . . . . . . . Combat Hostiles . | . . . . . . . . . Parts Melted 2 | 1 . 1 . . . . . . Heat Transferred 1149 | 222 74 518 . . . 185 150 . Parts Sabotaged . | . . . . . . . . . Parts Stolen . | . . . . . . . . . Parts Stripped . | . . . . . . . . . Power Chain Reactions . | . . . . . . . . . Alert | -11 -10 -10 -10 -9 -8 -8 -7 -7 ------- Run | Yrd Mat Min Exi Min Mat Gar Fac Low Peak Influence 449 | 20 82 116 . . 29 301 449 . Initial 136 | . 13 31 . . . 1 136 . Average 85 | 7 39 85 . . 8 172 247 . Maximum Alert Level 2 | . . . . . . 1 2 . Low Security (%) 82 | 100 100 100 . 100 100 58 40 . Level 1 16 | . . . . . . 41 55 . Level 2 . | . . . . . . . 4 . Level 3 . | . . . . . . . . . Level 4 . | . . . . . . . . . Level 5 . | . . . . . . . . . High Security . | . . . . . . . . . Max Security . | . . . . . . . . . Squads Dispatched 19 | . 1 . . . 7 . 11 . Investigation 12 | . 1 . . . 3 . 8 . Extermination 2 | . . . . . . . 2 . Reinforcement 2 | . . . . . 1 . 1 . Assault . | . . . . . . . . . Garrison 3 | . . . . . 3 . . . Intercept . | . . . . . . . . . Searches Triggered . | . . . . . . . . . Construction Impeded . | . . . . . . . . . Haulers Reinforced . | . . . . . . . . . Active Scanning Responses . | . . . . . . . . . Cargo Convoy Interrupts . | . . . . . . . . . Stealth | -11 -10 -10 -10 -9 -8 -8 -7 -7 --------- Run | Yrd Mat Min Exi Min Mat Gar Fac Low Distress Signals 3 | . 1 . . . 2 . . . Communications Jammed . | . . . . . . . . . Distress Signals . | . . . . . . . . . Times Spotted 75 | . 6 5 . . 12 21 27 4 Peak Tracking Total 11 | . 4 2 . . 5 7 11 5 Tactical Retreats 17 | . . 1 . . 2 5 9 . Traps | -11 -10 -10 -10 -9 -8 -8 -7 -7 ------- Run | Yrd Mat Min Exi Min Mat Gar Fac Low Traps Triggered 7 | . . . . 2 . 2 3 . Indirectly . | . . . . . . . . . Trap Hack Attempts . | . . . . . . . . . Triggered . | . . . . . . . . . Disarmed . | . . . . . . . . . Reprogrammed . | . . . . . . . . . Reused . | . . . . . . . . . Traps Extracted . | . . . . . . . . . Installed . | . . . . . . . . . Triggered . | . . . . . . . . . Machines | -11 -10 -10 -10 -9 -8 -8 -7 -7 ---------- Run | Yrd Mat Min Exi Min Mat Gar Fac Low Machines Disabled 1 | . . . . . . . 1 . Max in Single Turn 1 | . . . . . . . 1 . Garrison Access 1 | . . . . . . . 1 . Machines Repaired . | . . . . . . . . . Machines Dismantled . | . . . . . . . . . Machines Sabotaged . | . . . . . . . . . Overloaded Fab Kills . | . . . . . . . . . Hacking | -11 -10 -10 -10 -9 -8 -8 -7 -7 --------- Run | Yrd Mat Min Exi Min Mat Gar Fac Low Machines Accessed 23 | . 4 . . 1 4 1 13 . Terminals 12 | . 3 . . . 2 1 6 . Fabricators 1 | . . . . . . . 1 . Repair Stations 2 | . . . . . 1 . 1 . Recycling Units 3 | . 1 . . . . . 2 . Scanalyzers 2 | . . . . . . . 2 . Garrison Access 2 | . . . . . 1 . 1 . Total Hacks 69 | . 12 . . 1 11 1 44 . Successful 29 | . 5 . . 1 5 1 17 . Failed 40 | . 7 . . . 6 . 27 . Catastrophic 8 | . 1 . . . 1 . 6 . Database Lockouts . | . . . . . . . . . Manual 39 | . 8 . 1 . 6 1 23 . Terminals 40 | . 9 . . . 6 1 24 . Fabricators 4 | . . . . . . . 4 . Repair Stations 8 | . . . . . 3 . 5 . Recycling Units 9 | . 3 . . . . . 6 . Scanalyzers 3 | . . . . . . . 3 . Garrison Access 4 | . . . . . 2 . 2 . Terminal Hacks 7 | . 2 . . 1 1 . 3 . Record 1 | . . . . . . . 1 . Robot Analysis 1 | . 1 . . . . . . . Open Door 1 | . . . . 1 . . . . Zone Layout 4 | . 1 . . . 1 . 2 . Fabricator Hacks 3 | . . . . . . . 3 . Network Status 1 | . . . . . . . 1 . Load Schematic 1 | . . . . . . . 1 . Build 1 | . . . . . . . 1 . Repair Station Hacks 5 | . . . . . 2 . 3 . Scan Component 3 | . . . . . 1 . 2 . Repair 2 | . . . . . 1 . 1 . Recycling Unit Hacks 2 | . 1 . . . . . 1 . Report Inventory 1 | . 1 . . . . . . . Retrieve Matter 1 | . . . . . . . 1 . Scanalyzer 2 | . . . . . . . 2 . Insert Component 1 | . . . . . . . 1 . Analyze 1 | . . . . . . . 1 . Garrison Access Hacks 2 | . . . . . 1 . 1 . Unlock Access 1 | . . . . . 1 . . . Seal Access 1 | . . . . . . . 1 . Unauthorized Hacks 8 | . 2 . . . 1 1 4 . Terminals 7 | . 2 . . . 1 1 3 . Botnet 5 | . 2 . . . . . 3 . Search 1 | . . . . . 1 . . . Override 1 | . . . . . . 1 . . Fabricators 1 | . . . . . . . 1 . Liberate 1 | . . . . . . . 1 . Repair Stations . | . . . . . . . . . Recycling Units . | . . . . . . . . . Scanalyzers . | . . . . . . . . . Garrison Access . | . . . . . . . . . Data Cores Recovered . | . . . . . . . . . Used . | . . . . . . . . . Hacking Detections 21 | . 4 . . . 4 . 13 . Full Trace Events 12 | . 3 . . . 1 . 8 . Feedback Events . | . . . . . . . . . Feedback Blocked . | . . . . . . . . . Robot Schematics Acquired . | . . . . . . . . . Robots Built . | . . . . . . . . . Authchips . | . . . . . . . . . Time . | . . . . . . . . . Total Robot Build Rating . | . . . . . . . . . Part Schematics Acquired 1 | . . . . . . . 1 . Parts Built . | . . . . . . . . . Authchips . | . . . . . . . . . Time 73 | . . . . . . . 73 . Total Part Build Rating . | . . . . . . . . . Parts Repaired 2 | . . . . . 1 . 1 . Time 74 | . . . . . 44 . 30 . Parts Recycled . | . . . . . . . . . Recycled Matter . | . . . . . . . . . Retrieved Matter . | . . . . . . . . . Retrieved Components . | . . . . . . . . . Parts Scanalyzed 1 | . . . . . . . 1 . Part Schematics Acquired 1 | . . . . . . . 1 . Parts Damaged . | . . . . . . . . . Bothacking | -11 -10 -10 -10 -9 -8 -8 -7 -7 ------------ Run | Yrd Mat Min Exi Min Mat Gar Fac Low Used RIF Installer . | . . . . . . . . . Robots Hacked 2 | . . . . . . . 2 . Non-combat 2 | . . . . . . . 2 . Combat . | . . . . . . . . . Robot Hacks Applied 3 | . . . . . . . 3 . parse_system 2 | . . . . . . . 2 . no_distress 1 | . . . . . . . 1 . Relay Couplers Released . | . . . . . . . . . Fabnet Peak Effective % . | . . . . . . . . . Robots Rewired . | . . . . . . . . . Allies Hacked . | . . . . . . . . . Hacks Repelled . | . . . . . . . . . Allies | -11 -10 -10 -10 -9 -8 -8 -7 -7 -------- Run | Yrd Mat Min Exi Min Mat Gar Fac Low Total Allies . | . . . . . . . . . Largest Group . | . . . . . . . . . Highest-Rated Group . | . . . . . . . . . Highest-Rated Ally . | . . . . . . . . . Total Orders . | . . . . . . . . . Ally Attacks . | . . . . . . . . . Total Damage . | . . . . . . . . . Kills . | . . . . . . . . . Allies Corrupted . | . . . . . . . . . Allies Melted . | . . . . . . . . . Intel | -11 -10 -10 -10 -9 -8 -8 -7 -7 ------- Run | Yrd Mat Min Exi Min Mat Gar Fac Low Robot Analysis Total 1 | . 1 . . . . . . . Derelict Logs Recovered . | . . . . . . . . . Drone Launches . | . . . . . . . . . Drone Recoveries . | . . . . . . . . . Exploration | -11 -10 -10 -10 -9 -8 -8 -7 -7 ------------- Run | Yrd Mat Min Exi Min Mat Gar Fac Low Turns Passed 3668 | 60 307 235 219 198 1431 387 696 135 Spaces Moved 2765 | 32 139 252 255 168 380 417 1037 85 Core 436 | 14 . . . . . 12 410 . Treads . | . . . . . . . . . Legs 5 | . . . . . . 5 . . Wheels 1094 | 18 139 252 255 168 170 . 7 85 Hover 577 | . . . . . 210 223 144 . Flight 653 | . . . . . . 177 476 . Fastest Speed 14 | 50 80 80 80 100 48 14 26 150 Average Speed 66 | 66 80 80 82 100 71 51 48 150 Slowest Speed 3350 | 80 80 80 100 100 115 3350 120 150 Overloaded Moves 61 | . . . . . . 45 16 . Propulsion Burnouts . | . . . . . . . . . Robots Hopped 2 | . . . . . . 1 1 . Cave-ins Triggered . | . . . . . . . . . Exploration Rate (%) 30 | 4 26 40 61 29 29 43 31 11 Regions Visited 8 Branch Regions 4 Pre-discovered Areas 1 | . . . . 1 . . . . Known Exits Taken 1 | . . . . . 1 . . . Unknown Exits Taken 6 | 1 1 1 1 1 . . 1 . Scrap Searched 1 | . . . . . . . . 1 Spaces Dug 22 | . . . . . 21 1 . . Terrain Destroyed 56 | . . . . . 32 24 . . Melee 11 | . . . . . 10 1 . . Projectile . | . . . . . . . . . AOE 45 | . . . . . 22 23 . . Terrain Rammed . | . . . . . . . . . Walls Destroyed . | . . . . . . . . . Machines Disabled . | . . . . . . . . . Actions | -11 -10 -10 -10 -9 -8 -8 -7 -7 --------- Run | Yrd Mat Min Exi Min Mat Gar Fac Low Total 4482 | 59 328 271 265 201 1516 528 1222 92 Wait 1464 | 6 183 6 . 20 1095 27 127 . Move 2754 | 31 138 251 254 167 380 414 1034 85 Hop 2 | . . . . . . 1 1 . Pick Up 47 | 10 4 1 3 5 8 3 12 1 Fast Attach 23 | 1 . . 1 . 7 8 6 . Attach 34 | 6 . . 1 1 4 9 9 4 Detach 5 | . . . . . . 2 3 . Swap 10 | . . 3 2 1 . 1 2 1 Drop 36 | . . 3 4 7 9 3 9 1 Fire 55 | 5 3 7 . . 2 29 9 . Melee 40 | . . . . . 11 23 6 . Ram 4 | . . . . . . . 4 . Kick . | . . . . . . . . . Crush . | . . . . . . . . . Escape Stasis 8 | . . . . . . 8 . . Rewire . | . . . . . . . . . Trap . | . . . . . . . . . Miscellaneous . | . . . . . . . . . Route ------- -11/Scrapyard -10/Materials -10/Mines (discovered 3 exits: [*Mat x2] / *Exi) -10/Exiles -9/Mines -8/Materials (discovered 2 exits: Fac / Gar) -8/Garrison (discovered 3 exits: *Fac x3) -7/Factory -7/Lower Caves History --------- Turn | Location | Event 25 | -11/Scrapyard | Discovered new exit (range 16) 61 | -11/Scrapyard | Entered Materials 268 | -10/Materials | Discovered new exit (range 19) 309 | -10/Materials | Build established: Mutant 368 | -10/Materials | Entered Mines 438 | -10/Mines | Deemed a non-threat by the Exiles lab entrance 439 | -10/Mines | Discovered new exit (range 5) 488 | -10/Mines | Discovered new exit (range 15) 574 | -10/Mines | Discovered new exit (range 5) 603 | -10/Mines | Entered Exiles 625 | -10/Exiles | Met 8R-AWN 637 | -10/Exiles | Met EX-HEX 659 | -10/Exiles | Met EX-BIN 670 | -10/Exiles | Aligned with FarCom system 671 | -10/Exiles | Given EX-Vault access code 690 | -10/Exiles | Opened EX-Vault 694 | -10/Exiles | Found Prototype Device 695 | -10/Exiles | Identified Skeleton Box 702 | -10/Exiles | Found Prototype Processor 702 | -10/Exiles | Identified Modified TNC 722 | -10/Exiles | Warned to stay clear of 0b10 Research branches 752 | -10/Exiles | Met EX-DEC 812 | -10/Exiles | Discovered new exit (range 12) 822 | -10/Exiles | Left Exiles lab with Modified TNC 822 | -10/Exiles | Entered Mines 824 | -9/Mines | Met a Derelict who couldn't figure out how to use a Trap Extractor 861 | -9/Mines | A weapon hastily lodged in a ceiling crevice suddenly fell to the ground 883 | -9/Mines | Learned location of Storage (-9) 952 | -9/Mines | Received a Rocket Launcher from a helpful Derelict 1014 | -9/Mines | Discovered new exit (range 6) 1020 | -9/Mines | Entered Materials 1020 | -8/Materials | Evolved 4 slots: Propulsion x2, Utility x2 1159 | -8/Materials | Garrison activated, responded to threat 1374 | -8/Materials | Discovered new exit (range 14) 1995 | -8/Materials | Repaired Imp. Medium Armor Plating 2451 | -8/Materials | Identified exit to Garrison 2451 | -8/Materials | Entered Garrison 2479 | -8/Garrison | Identified exit to Factory 2507 | -8/Garrison | Triggered checkpoint 2607 | -8/Garrison | Triggered checkpoint 2639 | -8/Garrison | Triggered checkpoint 2698 | -8/Garrison | Core integrity fell below 50% 2719 | -8/Garrison | Lost 7 parts (4n1u2w) 2722 | -8/Garrison | Destroyed 7 combat bots 2764 | -8/Garrison | Core integrity fell below 20% 2784 | -8/Garrison | Lost 5 parts (2n2u1w) 2829 | -8/Garrison | Triggered checkpoint 2838 | -8/Garrison | Entered Factory 2838 | -7/Factory | Evolved 2 slots: Utility x2 2868 | -7/Factory | Lost 4 parts (1p2n1w) 3090 | -7/Factory | Repaired Broken Imp. Shield Generator 3301 | -7/Factory | System corruption reached 10% 3392 | -7/Factory | Core integrity fell below 50% 3466 | -7/Factory | Core integrity fell below 20% 3510 | -7/Factory | Lost 4 parts (1p1n2w) 3516 | -7/Factory | Discovered new exit (range 5) 3534 | -7/Factory | Entered Lower Caves 3669 | -7/Lower Caves | Destroyed by S-27 Virus with Autogun Last Messages --------------- 03512_ System corrupted: Energy discharge (-28). 03516_ EXIT=FOUND 03518_ Acquired Arm. Wheel. 03529_ Dropped Arm. Wheel. LOCATION=UNKNOWN GOAL=ESCAPE 03537_ Dropped Arm. Wheel. 03555_ System corrupted: Energy discharge (-9). 03571_ System corrupted: Matter fused (-6). 03589_ System corrupted: Heat flow error (+142). 03633_ QEAR6NMW 2KZVVN&2XU SZB8 03643_ Searching scrap... 03643_ Found Chainsword. 03643_ Found 19 Matter. 03643_ Found 33 Matter. 03644_ Acquired 33 matter. 03646_ Acquired Chainsword. 03647_ Acquired 19 matter. 03658_ System corrupted: Energy discharge (-20). 03666_ H4-3EG(S) destroyed. Map ----- +----------------------------------------------------+ | ?????????????????????????????????????????????????? | | ?????????????????????????????????????????????????? | | ?????????????????????????????????????????????????? | | ?????????????????????????????????????????????????? | | ?????????????????????????????????????????????????? | | ?????????????????????????????????????????????????? | | ?????????????????????????????????????????????????? | | ?????????????????????????????????????????????????? | | ?????????????????????????????????????????? ??????# | | ??????????????????????????????????????????? ?#?#? | | ???????????????????????????????????????????# # # | | ???????????????????????????????????????????? # # # | | ????????????????????????????????????????????? ? | | ?????????????????????????????????????????????? | | ??????????????????????????????????????????????# | | ???????????????????????????????????????# ?????# # | | ????????????????????????????????????? ????## | | ????????????????????####?????????# #?? ##?## | | ????????????????????# #?###### ??? ## | | ????????????????????# ### ??????# | | ????????????????????# ## #?????????## # # | | ????????????????????? ## #??????????## # | | ?????????????????????# ## #???????????# | | ????????????????????## ## #???????????# | | ?????????????????#### ## ##?########### ##### | | ????????????# ## @ ### ##??## | | ???????????# ##??# | | ??????????# !%sss #### ######## ##?# | | ??????? s ## ?????## #??????# #### | | ??????? ?????#????????# #??????# # ##? | | ????????????????????????# ##??????## ## | | ????????????????????????# ##????????### | | ????????????????????????# ##???????????## # | | ????????????????????????## ###?????????????## | | ?????????????????????????####????????????????##### | | ?????????????????????????????????????????????????? | | ?????????????????????????????????????????????????? | | ?????????????????????????????????????????????????? | | ?????????????????????????????????????????????????? | | ?????????????????????????????????????????????????? | | ?????????????????????????????????????????????????? | | ?????????????????????????????????????????????????? | | ?????????????????????????????????????????????????? | | ?????????????????????????????????????????????????? | | ?????????????????????????????????????????????????? | | ?????????????????????????????????????????????????? | | ?????????????????????????????????????????????????? | | ?????????????????????????????????????????????????? | | ?????????????????????????????????????????????????? | | ?????????????????????????????????????????????????? | +----------------------------------------------------+ Best States ------------- Heat Dissipation 34 Energy Generation 15 Energy Capacity 250 Matter Stores 300 Matter Capacity 300 Sight Range 16 Terrain Scan Density 10 ECM Strength 2 Base Temperature (-) 100 Armor Coverage 225 Evasion (%) 65 Item Schematics ----------------- Surge Thruster | -7/Factory | Scanalyzed Robot Schematics ------------------ None Fabricated ------------ Nothing Alien Tech Used ----------------- None Achievements -------------- Can't Catch Me Tank Whoosh! Challenges ------------ None Game ------ Seed StructuralCoolingSheargun Manual? 0 Play Time 01:05:11 Cumulative 45.5 hours Start 2024.06.30 @ 09:28:30 End 2024.06.30 @ 19:41:54 Sessions 3 Manual Loads 0 Difficulty Rogue Special Mode None Game No. 79 Rogue 79 Adventurer 0 Explorer 0 Win Type - Total 0 Types 0/0/0/0/0/0/0/0/0 Lore% 24 Gallery% 32 Achievement% 28 Wizard Run 0 Options --------- Layout 0 ASCII 0 Keyboard 0 Movement Mouse Keybinds 0 Fullscreen 2 Font 18/SmallcapsGlow Map View 38x25 Zoom Use 77% Tactical HUD 1 Map Filters NONE Filters NONE Steam 1 RUN: 13003914-3c29-45cb-83b6-bfaa95a9f3d0